[Event "Titled Tuesday Blitz January 04 2022"]
[White "Yuan, Qingyu"]
[Black "Sorokin, Aleksey"]
[WhiteFideId "8609772"]
[BlackFideId "24176460"]
[WhiteElo "2359"]
[BlackElo "2476"]
[Result "0-1"]
[Round "04"]
[TimeControl "180+1"]
[Date "2022.01.04"]
[WhiteClock "0:00:02"]
[BlackClock "0:01:02"]

1. Nf3 {[%clk 0:01:41]}  Nf6 {[%clk 0:02:57]} 2. g3 {[%clk 0:01:41]}  g6 {[%clk 0:02:58]} 3. b3 {[%clk 0:01:40]}  Bg7 {[%clk 0:02:58]} 4. Bb2 {[%clk 0:01:40]}  d5 {[%clk 0:02:59]} 5. Bg2 {[%clk 0:01:40]}  c5 {[%clk 0:02:59]} 6. O-O {[%clk 0:01:40]}  O-O {[%clk 0:02:57]} 7. e3 {[%clk 0:01:40]}  Nc6 {[%clk 0:02:57]} 8. Ne5 {[%clk 0:01:40]}  Bd7 {[%clk 0:02:57]} 9. c4 {[%clk 0:01:37]}  d4 {[%clk 0:02:56]} 10. Nxc6 {[%clk 0:01:32]}  Bxc6 {[%clk 0:02:57]} 11. Bxc6 {[%clk 0:01:32]}  bxc6 {[%clk 0:02:58]} 12. Qf3 {[%clk 0:01:27]}  Qd7 {[%clk 0:02:51]} 13. exd4 {[%clk 0:01:24]}  cxd4 {[%clk 0:02:50]} 14. d3 {[%clk 0:01:24]}  e5 {[%clk 0:02:46]} 15. Nd2 {[%clk 0:01:24]}  Rfe8 {[%clk 0:02:41]} 16. Rfe1 {[%clk 0:01:23]}  Re6 {[%clk 0:02:40]} 17. Re2 {[%clk 0:01:20]}  Rae8 {[%clk 0:02:37]} 18. Rae1 {[%clk 0:01:19]}  c5 {[%clk 0:02:35]} 19. h3 {[%clk 0:01:09]}  Qc7 {[%clk 0:02:35]} 20. Kh2 {[%clk 0:01:08]}  Qa5 {[%clk 0:02:29]} 21. a3 {[%clk 0:01:05]}  Bh6 {[%clk 0:02:29]} 22. Ne4 {[%clk 0:01:02]}  Nxe4 {[%clk 0:02:29]} 23. Qxe4 {[%clk 0:01:02]}  Bd2 {[%clk 0:02:19]} 24. Rf1 {[%clk 0:00:49]}  Bc3 {[%clk 0:02:18]} 25. Bc1 {[%clk 0:00:48]}  Qb6 {[%clk 0:02:17]} 26. b4 {[%clk 0:00:43]}  cxb4 {[%clk 0:02:16]} 27. axb4 {[%clk 0:00:43]}  Qxb4 {[%clk 0:02:15]} 28. Bh6 {[%clk 0:00:38]}  a5 {[%clk 0:02:14]} 29. Qd5 {[%clk 0:00:37]}  a4 {[%clk 0:02:09]} 30. f4 {[%clk 0:00:37]}  exf4 {[%clk 0:02:09]} 31. Rxe6 {[%clk 0:00:37]}  fxe6 {[%clk 0:02:09]} 32. Qd7 {[%clk 0:00:33]}  Qe7 {[%clk 0:02:09]} 33. Qxa4 {[%clk 0:00:32]}  e5 {[%clk 0:02:04]} 34. Qc6 {[%clk 0:00:23]}  Qe6 {[%clk 0:01:55]} 35. Qb7 {[%clk 0:00:20]}  Qf7 {[%clk 0:01:55]} 36. Qe4 {[%clk 0:00:16]}  Bd2 {[%clk 0:01:46]} 37. c5 {[%clk 0:00:13]}  Be3 {[%clk 0:01:44]} 38. Kg2 {[%clk 0:00:10]}  Rb8 {[%clk 0:01:37]} 39. c6 {[%clk 0:00:10]}  Rb2+ {[%clk 0:01:33]} 40. Kf3 {[%clk 0:00:04]}  Rf2+ {[%clk 0:01:20]} 41. Rxf2 {[%clk 0:00:03]}  fxg3+ {[%clk 0:01:20]} 42. Kg4 {[%clk 0:00:03]}  gxf2 {[%clk 0:01:19]} 43. c7 {[%clk 0:00:03]}  Qd7+ {[%clk 0:01:14]} 44. Kg3 {[%clk 0:00:02]}  Bxh6 {[%clk 0:01:12]} 45. Qa8+ {[%clk 0:00:01]}  Kg7 {[%clk 0:01:11]} 46. c8=Q {[%clk 0:00:02]}  Qxc8 {[%clk 0:01:11]} 47. Qxc8 {[%clk 0:00:03]}  f1=Q {[%clk 0:01:11]} 48. Qd7+ {[%clk 0:00:01]}  Kg8 {[%clk 0:01:10]} 49. Qe8+ {[%clk 0:00:01]}  Bf8 {[%clk 0:01:09]} 50. Qe6+ {[%clk 0:00:02]}  Qf7 {[%clk 0:01:09]} 51. Qxe5 {[%clk 0:00:01]}  Qd7 {[%clk 0:01:09]} 52. Qe4 {[%clk 0:00:02]}  Qd6+ {[%clk 0:01:08]} 53. Kg2 {[%clk 0:00:02]}  Be7 {[%clk 0:01:08]} 54. Qa8+ {[%clk 0:00:02]}  Kg7 {[%clk 0:01:08]} 55. Qe4 {[%clk 0:00:03]}  Qf6 {[%clk 0:01:08]} 56. Qd5 {[%clk 0:00:03]}  Bd6 {[%clk 0:01:08]} 57. Qb7+ {[%clk 0:00:03]}  Qe7 {[%clk 0:01:08]} 58. Qc6 {[%clk 0:00:03]}  Qe5 {[%clk 0:01:08]} 59. Qd7+ {[%clk 0:00:03]}  Kh6 {[%clk 0:01:08]} 60. Qd8 {[%clk 0:00:03]}  Qe2+ {[%clk 0:01:07]} 61. Kg1 {[%clk 0:00:04]}  Qe3+ {[%clk 0:01:02]} 62. Kg2 {[%clk 0:00:03]}  Qg5+ {[%clk 0:01:02]} 63. Kh1 {[%clk 0:00:02]}  Qxd8 {[%clk 0:01:01]} 64. h4 {[%clk 0:00:03]}  Qe7 {[%clk 0:01:00]} 65. h5 {[%clk 0:00:03]}  Qe2 {[%clk 0:01:00]} 66. Kg1 {[%clk 0:00:02]}  Qh2+ {[%clk 0:01:00]} 67. Kf1 {[%clk 0:00:03]}  Bg3 {[%clk 0:01:01]} 68. hxg6 {[%clk 0:00:02]}  Qf2# {[%clk 0:01:02]} 0-1


[Site "https://www.chess.com"]

[Event "Titled Tuesday Blitz January 04 2022"]
[White "Zierk, Steven"]
[Black "Volkov, Maksim"]
[WhiteFideId "2034255"]
[BlackFideId "54123070"]
[WhiteElo "2494"]
[BlackElo "2081"]
[Result "1-0"]
[Round "04"]
[TimeControl "180+1"]
[Date "2022.01.04"]
[WhiteClock "0:01:42"]
[BlackClock "0:01:19"]

1. e4 {[%clk 0:03:00]}  c5 {[%clk 0:02:59]} 2. Nf3 {[%clk 0:03:01]}  e6 {[%clk 0:02:59]} 3. d4 {[%clk 0:03:01]}  cxd4 {[%clk 0:03:00]} 4. Nxd4 {[%clk 0:03:02]}  Nc6 {[%clk 0:03:00]} 5. Nc3 {[%clk 0:03:02]}  Qc7 {[%clk 0:03:01]} 6. Be3 {[%clk 0:03:02]}  a6 {[%clk 0:03:01]} 7. Qf3 {[%clk 0:03:03]}  Nf6 {[%clk 0:02:59]} 8. O-O-O {[%clk 0:03:02]}  b5 {[%clk 0:02:55]} 9. e5 {[%clk 0:02:58]}  Bb7 {[%clk 0:02:42]} 10. exf6 {[%clk 0:02:31]}  Nxd4 {[%clk 0:02:41]} 11. Qg3 {[%clk 0:02:05]}  Qxg3 {[%clk 0:02:38]} 12. hxg3 {[%clk 0:02:06]}  Nf5 {[%clk 0:02:37]} 13. fxg7 {[%clk 0:02:05]}  Bxg7 {[%clk 0:02:36]} 14. Bc5 {[%clk 0:02:00]}  Rc8 {[%clk 0:02:34]} 15. Bb4 {[%clk 0:02:00]}  h5 {[%clk 0:02:07]} 16. Bd3 {[%clk 0:01:47]}  Bxg2 {[%clk 0:01:46]} 17. Bxf5 {[%clk 0:01:47]}  Bxh1 {[%clk 0:01:46]} 18. Rxh1 {[%clk 0:01:45]}  exf5 {[%clk 0:01:45]} 19. Re1+ {[%clk 0:01:44]}  Kd8 {[%clk 0:01:45]} 20. Ba5+ {[%clk 0:01:44]}  Rc7 {[%clk 0:01:35]} 21. Nd5 {[%clk 0:01:44]}  Kc8 {[%clk 0:01:19]} 22. Bxc7 {[%clk 0:01:42]} 1-0


[Site "https://www.chess.com"]

[Event "Titled Tuesday Blitz January 04 2022"]
[White "Albornoz Cabrera, Carlos Daniel"]
[Black "Senthil Maran K"]
[WhiteFideId "3518736"]
[BlackFideId "25035681"]
[WhiteElo "2490"]
[BlackElo "2194"]
[Result "1-0"]
[Round "05"]
[TimeControl "180+1"]
[Date "2022.01.04"]
[WhiteClock "0:00:52"]
[BlackClock "0:00:03"]

1. e4 {[%clk 0:03:00]}  c6 {[%clk 0:02:59]} 2. Nf3 {[%clk 0:02:59]}  d5 {[%clk 0:03:00]} 3. Nc3 {[%clk 0:03:00]}  g6 {[%clk 0:03:00]} 4. d4 {[%clk 0:02:58]}  Bg4 {[%clk 0:02:59]} 5. h3 {[%clk 0:02:57]}  Bxf3 {[%clk 0:02:59]} 6. Qxf3 {[%clk 0:02:57]}  e6 {[%clk 0:03:00]} 7. Be3 {[%clk 0:02:54]}  Bg7 {[%clk 0:03:00]} 8. Bd3 {[%clk 0:02:53]}  Nd7 {[%clk 0:03:00]} 9. O-O-O {[%clk 0:02:49]}  Ne7 {[%clk 0:03:00]} 10. h4 {[%clk 0:02:47]}  h5 {[%clk 0:03:00]} 11. Kb1 {[%clk 0:02:45]}  O-O {[%clk 0:02:54]} 12. g4 {[%clk 0:02:41]}  hxg4 {[%clk 0:02:53]} 13. Qxg4 {[%clk 0:02:41]}  Nf6 {[%clk 0:02:51]} 14. Qg2 {[%clk 0:02:38]}  dxe4 {[%clk 0:02:50]} 15. Nxe4 {[%clk 0:02:38]}  Nf5 {[%clk 0:02:50]} 16. h5 {[%clk 0:02:30]}  Nxh5 {[%clk 0:02:21]} 17. Rdg1 {[%clk 0:02:30]}  Nxe3 {[%clk 0:02:09]} 18. fxe3 {[%clk 0:02:27]}  Qd5 {[%clk 0:02:08]} 19. Qh3 {[%clk 0:01:48]}  Qf5 {[%clk 0:01:58]} 20. Qh2 {[%clk 0:01:47]}  Rfd8 {[%clk 0:01:45]} 21. Rg5 {[%clk 0:01:44]}  Qf3 {[%clk 0:01:36]} 22. Qg1 {[%clk 0:01:21]}  Nf6 {[%clk 0:00:41]} 23. Nd2 {[%clk 0:01:09]}  Qxh1 {[%clk 0:00:24]} 24. Qxh1 {[%clk 0:01:08]}  Nd5 {[%clk 0:00:24]} 25. Rg3 {[%clk 0:01:01]}  c5 {[%clk 0:00:24]} 26. c3 {[%clk 0:00:59]}  Rac8 {[%clk 0:00:22]} 27. Ne4 {[%clk 0:00:57]}  b6 {[%clk 0:00:21]} 28. Ng5 {[%clk 0:00:56]}  a6 {[%clk 0:00:17]} 29. Qh7+ {[%clk 0:00:53]}  Kf8 {[%clk 0:00:18]} 30. Rf3 {[%clk 0:00:54]}  Rc7 {[%clk 0:00:03]} 31. Nxe6+ {[%clk 0:00:52]} 1-0


[Site "https://www.chess.com"]

[Event "Titled Tuesday Blitz January 04 2022"]
[White "Andreikin, Dmitry"]
[Black "Grandelius, Nils"]
[WhiteFideId "4158814"]
[BlackFideId "1710400"]
[WhiteElo "2736"]
[BlackElo "2617"]
[Result "1-0"]
[Round "05"]
[TimeControl "180+1"]
[Date "2022.01.04"]
[WhiteClock "0:00:20"]
[BlackClock "0:00:06"]

1. d4 {[%clk 0:03:00]}  d5 {[%clk 0:02:59]} 2. c4 {[%clk 0:03:00]}  e6 {[%clk 0:03:00]} 3. Nc3 {[%clk 0:02:59]}  a6 {[%clk 0:03:00]} 4. cxd5 {[%clk 0:02:53]}  exd5 {[%clk 0:03:01]} 5. Bf4 {[%clk 0:02:51]}  Nf6 {[%clk 0:03:00]} 6. e3 {[%clk 0:02:50]}  Bd6 {[%clk 0:02:59]} 7. Bxd6 {[%clk 0:02:48]}  Qxd6 {[%clk 0:02:58]} 8. Bd3 {[%clk 0:02:49]}  O-O {[%clk 0:02:55]} 9. Nge2 {[%clk 0:02:47]}  Bg4 {[%clk 0:02:48]} 10. f3 {[%clk 0:02:45]}  Bh5 {[%clk 0:02:48]} 11. g4 {[%clk 0:02:41]}  Bg6 {[%clk 0:02:48]} 12. h4 {[%clk 0:02:41]}  Re8 {[%clk 0:02:41]} 13. h5 {[%clk 0:02:40]}  Bxd3 {[%clk 0:02:35]} 14. Qxd3 {[%clk 0:02:41]}  h6 {[%clk 0:02:30]} 15. O-O-O {[%clk 0:02:39]}  c5 {[%clk 0:02:30]} 16. Rdg1 {[%clk 0:02:28]}  Qe7 {[%clk 0:02:03]} 17. g5 {[%clk 0:01:59]}  hxg5 {[%clk 0:01:59]} 18. Rxg5 {[%clk 0:01:59]}  Qxe3+ {[%clk 0:01:55]} 19. Qxe3 {[%clk 0:02:00]}  Rxe3 {[%clk 0:01:55]} 20. Rhg1 {[%clk 0:01:58]}  Nc6 {[%clk 0:01:33]} 21. Rxg7+ {[%clk 0:01:56]}  Kf8 {[%clk 0:01:34]} 22. h6 {[%clk 0:01:40]}  Rxf3 {[%clk 0:01:12]} 23. Nxd5 {[%clk 0:01:33]}  Nxd5 {[%clk 0:01:05]} 24. Rg8+ {[%clk 0:01:32]}  Ke7 {[%clk 0:01:06]} 25. Rxa8 {[%clk 0:01:31]}  Rh3 {[%clk 0:01:06]} 26. dxc5 {[%clk 0:01:20]}  Rxh6 {[%clk 0:01:04]} 27. Nc3 {[%clk 0:01:08]}  Nxc3 {[%clk 0:00:51]} 28. bxc3 {[%clk 0:01:09]}  Rh5 {[%clk 0:00:40]} 29. Re1+ {[%clk 0:01:09]}  Kd7 {[%clk 0:00:38]} 30. Rf8 {[%clk 0:01:08]}  Rf5 {[%clk 0:00:29]} 31. Kb2 {[%clk 0:00:59]}  Na5 {[%clk 0:00:25]} 32. Re4 {[%clk 0:00:53]}  Rxc5 {[%clk 0:00:18]} 33. Rxf7+ {[%clk 0:00:52]}  Kc6 {[%clk 0:00:19]} 34. Re6+ {[%clk 0:00:47]}  Kb5 {[%clk 0:00:19]} 35. Kc2 {[%clk 0:00:47]}  Nc4 {[%clk 0:00:19]} 36. Rxb7+ {[%clk 0:00:46]}  Ka5 {[%clk 0:00:20]} 37. Rbe7 {[%clk 0:00:37]}  Na3+ {[%clk 0:00:19]} 38. Kb3 {[%clk 0:00:35]}  Nb5 {[%clk 0:00:19]} 39. Re3 {[%clk 0:00:32]}  Rc8 {[%clk 0:00:09]} 40. R7e5 {[%clk 0:00:27]}  Kb6 {[%clk 0:00:06]} 41. Re6+ {[%clk 0:00:28]}  Ka5 {[%clk 0:00:07]} 42. Rh6 {[%clk 0:00:23]}  Rb8 {[%clk 0:00:06]} 43. Re5 {[%clk 0:00:20]} 1-0


[Site "https://www.chess.com"]

[Event "Titled Tuesday Blitz January 04 2022"]
[White "Babazada, Khazar"]
[Black "Gokerkan, Cem Kaan"]
[WhiteFideId "13413554"]
[BlackFideId "6336760"]
[WhiteElo "2418"]
[BlackElo "2382"]
[Result "1-0"]
[Round "05"]
[TimeControl "180+1"]
[Date "2022.01.04"]
[WhiteClock "0:00:29"]
[BlackClock "0:00:02"]

1. e4 {[%clk 0:03:00]}  c5 {[%clk 0:03:00]} 2. Nf3 {[%clk 0:03:00]}  g6 {[%clk 0:03:00]} 3. Nc3 {[%clk 0:02:58]}  Bg7 {[%clk 0:03:00]} 4. Bc4 {[%clk 0:02:53]}  Nc6 {[%clk 0:03:00]} 5. d3 {[%clk 0:02:52]}  e6 {[%clk 0:03:00]} 6. O-O {[%clk 0:02:51]}  Nge7 {[%clk 0:03:00]} 7. Re1 {[%clk 0:02:50]}  O-O {[%clk 0:03:00]} 8. e5 {[%clk 0:02:48]}  a6 {[%clk 0:01:58]} 9. a4 {[%clk 0:02:45]}  Qc7 {[%clk 0:01:49]} 10. Bf4 {[%clk 0:02:43]}  f6 {[%clk 0:01:37]} 11. exf6 {[%clk 0:02:12]}  Qxf4 {[%clk 0:01:38]} 12. fxg7 {[%clk 0:02:12]}  Kxg7 {[%clk 0:01:39]} 13. Ne2 {[%clk 0:02:00]}  Qf6 {[%clk 0:01:35]} 14. Ng3 {[%clk 0:01:50]}  d5 {[%clk 0:01:35]} 15. Bb3 {[%clk 0:01:48]}  Nd4 {[%clk 0:01:30]} 16. Nxd4 {[%clk 0:01:19]}  Qxf2+ {[%clk 0:01:29]} 17. Kh1 {[%clk 0:01:19]}  Qxd4 {[%clk 0:01:29]} 18. c3 {[%clk 0:01:19]}  Qh4 {[%clk 0:01:28]} 19. Qe2 {[%clk 0:01:16]}  Bd7 {[%clk 0:01:27]} 20. Qe5+ {[%clk 0:01:15]}  Qf6 {[%clk 0:01:22]} 21. Qd6 {[%clk 0:01:15]}  Rad8 {[%clk 0:01:09]} 22. Qxc5 {[%clk 0:01:15]}  Nf5 {[%clk 0:01:04]} 23. Nxf5+ {[%clk 0:01:13]}  gxf5 {[%clk 0:01:02]} 24. d4 {[%clk 0:01:11]}  Rg8 {[%clk 0:00:52]} 25. Bd1 {[%clk 0:01:10]}  h5 {[%clk 0:00:46]} 26. Bf3 {[%clk 0:01:10]}  h4 {[%clk 0:00:45]} 27. h3 {[%clk 0:01:09]}  Bc6 {[%clk 0:00:35]} 28. Re5 {[%clk 0:01:08]}  Rge8 {[%clk 0:00:33]} 29. Rae1 {[%clk 0:01:08]}  Re7 {[%clk 0:00:34]} 30. Rxf5 {[%clk 0:01:04]}  exf5 {[%clk 0:00:29]} 31. Rxe7+ {[%clk 0:01:04]}  Kg6 {[%clk 0:00:27]} 32. Re1 {[%clk 0:00:59]}  Rd6 {[%clk 0:00:23]} 33. Qa3 {[%clk 0:00:52]}  Re6 {[%clk 0:00:24]} 34. Qa1 {[%clk 0:00:51]}  Rxe1+ {[%clk 0:00:23]} 35. Qxe1 {[%clk 0:00:52]}  Bxa4 {[%clk 0:00:22]} 36. Bxd5 {[%clk 0:00:49]}  Bc6 {[%clk 0:00:21]} 37. Bxc6 {[%clk 0:00:49]}  Qxc6 {[%clk 0:00:20]} 38. Qxh4 {[%clk 0:00:48]}  Qb5 {[%clk 0:00:20]} 39. Qg3+ {[%clk 0:00:46]}  Kf7 {[%clk 0:00:20]} 40. Qf2 {[%clk 0:00:45]}  Kg6 {[%clk 0:00:17]} 41. Kh2 {[%clk 0:00:42]}  a5 {[%clk 0:00:18]} 42. h4 {[%clk 0:00:40]}  a4 {[%clk 0:00:17]} 43. Qg3+ {[%clk 0:00:38]}  Kf7 {[%clk 0:00:16]} 44. h5 {[%clk 0:00:38]}  Qc6 {[%clk 0:00:09]} 45. Qe5 {[%clk 0:00:33]}  Qd7 {[%clk 0:00:03]} 46. Kg3 {[%clk 0:00:29]}  Kg8 {[%clk 0:00:02]} 47. Kf4 {[%clk 0:00:29]} 1-0


[Site "https://www.chess.com"]

[Event "Titled Tuesday Blitz January 04 2022"]
[White "Deac, Bogdan-Daniel"]
[Black "Aghasiyev, Kamal"]
[WhiteFideId "1226380"]
[BlackFideId "13402854"]
[WhiteElo "2646"]
[BlackElo "2210"]
[Result "1/2-1/2"]
[Round "05"]
[TimeControl "180+1"]
[Date "2022.01.04"]
[WhiteClock "0:00:04"]
[BlackClock "0:00:13"]

1. e4 {[%clk 0:03:00]}  c5 {[%clk 0:02:59]} 2. Nf3 {[%clk 0:03:01]}  Nc6 {[%clk 0:02:59]} 3. d4 {[%clk 0:03:00]}  cxd4 {[%clk 0:02:59]} 4. Nxd4 {[%clk 0:03:01]}  g6 {[%clk 0:02:58]} 5. c4 {[%clk 0:03:00]}  Bg7 {[%clk 0:02:58]} 6. Be3 {[%clk 0:03:01]}  Nf6 {[%clk 0:02:56]} 7. Nc3 {[%clk 0:03:00]}  d6 {[%clk 0:02:56]} 8. f3 {[%clk 0:03:00]}  O-O {[%clk 0:02:55]} 9. Be2 {[%clk 0:03:00]}  Bd7 {[%clk 0:02:53]} 10. O-O {[%clk 0:02:56]}  Nxd4 {[%clk 0:02:51]} 11. Bxd4 {[%clk 0:02:56]}  a5 {[%clk 0:02:51]} 12. c5 {[%clk 0:02:56]}  dxc5 {[%clk 0:02:26]} 13. Bxc5 {[%clk 0:02:53]}  Rc8 {[%clk 0:02:26]} 14. Be3 {[%clk 0:02:50]}  Be6 {[%clk 0:02:23]} 15. Qa4 {[%clk 0:02:44]}  Bd7 {[%clk 0:01:58]} 16. Qb3 {[%clk 0:02:15]}  Bc6 {[%clk 0:01:57]} 17. Rfd1 {[%clk 0:01:57]}  Qe8 {[%clk 0:01:54]} 18. Nb5 {[%clk 0:01:32]}  Rd8 {[%clk 0:01:38]} 19. Bb6 {[%clk 0:01:10]}  Rxd1+ {[%clk 0:01:36]} 20. Rxd1 {[%clk 0:01:11]}  Nd7 {[%clk 0:01:19]} 21. Bxa5 {[%clk 0:00:37]}  Nc5 {[%clk 0:01:19]} 22. Qb4 {[%clk 0:00:24]}  Ne6 {[%clk 0:01:11]} 23. Bb6 {[%clk 0:00:12]}  Qa8 {[%clk 0:01:08]} 24. a3 {[%clk 0:00:08]}  Qb8 {[%clk 0:01:09]} 25. Bf1 {[%clk 0:00:05]}  Be5 {[%clk 0:01:09]} 26. h3 {[%clk 0:00:05]}  Bh2+ {[%clk 0:01:08]} 27. Kh1 {[%clk 0:00:05]}  Be5 {[%clk 0:01:07]} 28. Nc3 {[%clk 0:00:05]}  Ng7 {[%clk 0:01:05]} 29. Nd5 {[%clk 0:00:05]}  Bxd5 {[%clk 0:01:05]} 30. Rxd5 {[%clk 0:00:05]}  Nh5 {[%clk 0:01:04]} 31. Qxe7 {[%clk 0:00:05]}  Re8 {[%clk 0:00:58]} 32. Qd7 {[%clk 0:00:04]}  Rf8 {[%clk 0:00:49]} 33. Bc4 {[%clk 0:00:03]}  Bxb2 {[%clk 0:00:38]} 34. Qe7 {[%clk 0:00:03]}  Qg3 {[%clk 0:00:34]} 35. Rd8 {[%clk 0:00:02]}  Qe1+ {[%clk 0:00:27]} 36. Kh2 {[%clk 0:00:02]}  Qg3+ {[%clk 0:00:26]} 37. Kg1 {[%clk 0:00:02]}  Qe1+ {[%clk 0:00:25]} 38. Bf1 {[%clk 0:00:01]}  Rxd8 {[%clk 0:00:25]} 39. Qxd8+ {[%clk 0:00:02]}  Kg7 {[%clk 0:00:25]} 40. Bd4+ {[%clk 0:00:03]}  Bxd4+ {[%clk 0:00:24]} 41. Qxd4+ {[%clk 0:00:04]}  f6 {[%clk 0:00:20]} 42. Qd7+ {[%clk 0:00:04]}  Kh6 {[%clk 0:00:20]} 43. Qd6 {[%clk 0:00:04]}  Ng3 {[%clk 0:00:19]} 44. Qf4+ {[%clk 0:00:03]}  Kg7 {[%clk 0:00:12]} 45. Qc7+ {[%clk 0:00:03]}  Kh6 {[%clk 0:00:12]} 46. Qf4+ {[%clk 0:00:04]}  Kg7 {[%clk 0:00:12]} 47. Qc7+ {[%clk 0:00:04]}  Kh6 {[%clk 0:00:13]} 48. Qf4+ {[%clk 0:00:04]} 1/2-1/2


[Site "https://www.chess.com"]

[Event "Titled Tuesday Blitz January 04 2022"]
[White "Drozdowski, Kacper"]
[Black "Seo, Jung Min"]
[WhiteFideId "1136720"]
[BlackFideId "1734687"]
[WhiteElo "2507"]
[BlackElo "2401"]
[Result "1-0"]
[Round "05"]
[TimeControl "180+1"]
[Date "2022.01.04"]
[WhiteClock "0:00:56"]
[BlackClock "0:00:25"]

1. e4 {[%clk 0:03:00]}  c6 {[%clk 0:02:59]} 2. d4 {[%clk 0:03:00]}  d5 {[%clk 0:02:59]} 3. Nc3 {[%clk 0:03:01]}  dxe4 {[%clk 0:02:59]} 4. Nxe4 {[%clk 0:03:02]}  Nd7 {[%clk 0:02:59]} 5. Ng5 {[%clk 0:03:01]}  Ngf6 {[%clk 0:02:59]} 6. Bc4 {[%clk 0:03:01]}  e6 {[%clk 0:02:57]} 7. Qe2 {[%clk 0:03:01]}  Nb6 {[%clk 0:02:56]} 8. Bd3 {[%clk 0:03:01]}  h6 {[%clk 0:02:55]} 9. N5f3 {[%clk 0:03:01]}  c5 {[%clk 0:02:54]} 10. dxc5 {[%clk 0:03:01]}  Nbd7 {[%clk 0:02:54]} 11. c6 {[%clk 0:02:53]}  bxc6 {[%clk 0:02:54]} 12. Bd2 {[%clk 0:02:46]}  Nc5 {[%clk 0:02:46]} 13. Bc4 {[%clk 0:02:43]}  Qb6 {[%clk 0:02:42]} 14. Rb1 {[%clk 0:02:01]}  Nce4 {[%clk 0:02:39]} 15. Bd3 {[%clk 0:01:55]}  Nxd2 {[%clk 0:02:38]} 16. Nxd2 {[%clk 0:01:56]}  Be7 {[%clk 0:02:33]} 17. Ngf3 {[%clk 0:01:56]}  a5 {[%clk 0:02:30]} 18. O-O {[%clk 0:01:56]}  a4 {[%clk 0:02:27]} 19. Ne5 {[%clk 0:01:55]}  O-O {[%clk 0:02:23]} 20. Ndc4 {[%clk 0:01:54]}  Qc7 {[%clk 0:02:23]} 21. Rbd1 {[%clk 0:01:52]}  Ba6 {[%clk 0:02:21]} 22. Rfe1 {[%clk 0:01:51]}  Rad8 {[%clk 0:02:16]} 23. b3 {[%clk 0:01:50]}  axb3 {[%clk 0:02:13]} 24. axb3 {[%clk 0:01:51]}  Bxc4 {[%clk 0:02:07]} 25. Bxc4 {[%clk 0:01:50]}  Nd5 {[%clk 0:02:04]} 26. Bxd5 {[%clk 0:01:22]}  cxd5 {[%clk 0:02:02]} 27. c4 {[%clk 0:01:22]}  dxc4 {[%clk 0:01:54]} 28. bxc4 {[%clk 0:01:19]}  Bf6 {[%clk 0:01:50]} 29. Nf3 {[%clk 0:01:19]}  Bc3 {[%clk 0:01:44]} 30. Rxd8 {[%clk 0:01:18]}  Rxd8 {[%clk 0:01:43]} 31. Rc1 {[%clk 0:01:19]}  Bb4 {[%clk 0:01:42]} 32. g3 {[%clk 0:01:18]}  Bc5 {[%clk 0:01:41]} 33. Kg2 {[%clk 0:01:18]}  Qd6 {[%clk 0:01:40]} 34. Rc2 {[%clk 0:01:17]}  Qd3 {[%clk 0:01:32]} 35. Qxd3 {[%clk 0:01:17]}  Rxd3 {[%clk 0:01:31]} 36. Nd2 {[%clk 0:01:17]}  Rd8 {[%clk 0:01:22]} 37. Ne4 {[%clk 0:01:15]}  Rc8 {[%clk 0:01:22]} 38. Nxc5 {[%clk 0:01:14]}  Rxc5 {[%clk 0:01:22]} 39. Kf3 {[%clk 0:01:15]}  Kf8 {[%clk 0:01:19]} 40. Ke4 {[%clk 0:01:15]}  e5 {[%clk 0:01:17]} 41. Kd3 {[%clk 0:01:13]}  Ke7 {[%clk 0:01:17]} 42. Ra2 {[%clk 0:01:13]}  h5 {[%clk 0:01:11]} 43. Ra6 {[%clk 0:01:10]}  Rc8 {[%clk 0:01:06]} 44. h4 {[%clk 0:01:09]}  f6 {[%clk 0:01:05]} 45. Ra7+ {[%clk 0:01:06]}  Kf8 {[%clk 0:00:56]} 46. Kc3 {[%clk 0:01:07]}  Rc6 {[%clk 0:00:40]} 47. Rb7 {[%clk 0:01:06]}  g5 {[%clk 0:00:37]} 48. Kb4 {[%clk 0:01:01]}  gxh4 {[%clk 0:00:36]} 49. gxh4 {[%clk 0:01:01]}  Ke8 {[%clk 0:00:33]} 50. c5 {[%clk 0:01:01]}  e4 {[%clk 0:00:29]} 51. Kb5 {[%clk 0:01:01]}  Re6 {[%clk 0:00:29]} 52. c6 {[%clk 0:01:01]}  Kd8 {[%clk 0:00:30]} 53. Kb6 {[%clk 0:01:00]}  e3 {[%clk 0:00:25]} 54. fxe3 {[%clk 0:00:58]}  Rxe3 {[%clk 0:00:25]} 55. Rb8+ {[%clk 0:00:56]}  Ke7 {[%clk 0:00:25]} 56. c7 {[%clk 0:00:56]} 1-0


[Site "https://www.chess.com"]

[Event "Titled Tuesday Blitz January 04 2022"]
[White "Koellner, Ruben Gideon"]
[Black "Azadaliyev, Jahandar"]
[WhiteFideId "12993093"]
[BlackFideId "13425811"]
[WhiteElo "2608"]
[BlackElo "1795"]
[Result "1/2-1/2"]
[Round "05"]
[TimeControl "180+1"]
[Date "2022.01.04"]
[WhiteClock "0:01:20"]
[BlackClock "0:00:26"]

1. d4 {[%clk 0:03:00]}  Nf6 {[%clk 0:02:59]} 2. Bg5 {[%clk 0:03:00]}  Ne4 {[%clk 0:02:57]} 3. Bf4 {[%clk 0:03:00]}  d5 {[%clk 0:02:56]} 4. e3 {[%clk 0:02:59]}  Nf6 {[%clk 0:02:56]} 5. Bd3 {[%clk 0:02:58]}  e6 {[%clk 0:02:57]} 6. Nd2 {[%clk 0:02:58]}  Nbd7 {[%clk 0:02:57]} 7. c3 {[%clk 0:02:56]}  Bd6 {[%clk 0:02:57]} 8. Bg3 {[%clk 0:02:56]}  b6 {[%clk 0:02:57]} 9. Ngf3 {[%clk 0:02:54]}  Bb7 {[%clk 0:02:57]} 10. Ne5 {[%clk 0:02:54]}  O-O {[%clk 0:02:57]} 11. O-O {[%clk 0:02:53]}  Qe7 {[%clk 0:02:53]} 12. Qe2 {[%clk 0:02:44]}  c5 {[%clk 0:02:51]} 13. f4 {[%clk 0:02:33]}  Rac8 {[%clk 0:02:40]} 14. Qf3 {[%clk 0:02:32]}  cxd4 {[%clk 0:02:38]} 15. exd4 {[%clk 0:02:33]}  a6 {[%clk 0:02:29]} 16. Rae1 {[%clk 0:02:32]}  b5 {[%clk 0:02:25]} 17. a3 {[%clk 0:02:32]}  Nb6 {[%clk 0:02:23]} 18. Bh4 {[%clk 0:02:31]}  Nc4 {[%clk 0:02:19]} 19. Ndxc4 {[%clk 0:02:25]}  dxc4 {[%clk 0:02:19]} 20. Bxf6 {[%clk 0:02:21]}  Qxf6 {[%clk 0:01:13]} 21. Be4 {[%clk 0:02:17]}  Bxe4 {[%clk 0:01:12]} 22. Qxe4 {[%clk 0:02:18]}  Bxe5 {[%clk 0:01:11]} 23. fxe5 {[%clk 0:02:18]}  Qg5 {[%clk 0:01:12]} 24. Qf4 {[%clk 0:02:17]}  Qxf4 {[%clk 0:01:11]} 25. Rxf4 {[%clk 0:02:18]}  Rfd8 {[%clk 0:01:10]} 26. Kf2 {[%clk 0:02:15]}  a5 {[%clk 0:01:10]} 27. Ke3 {[%clk 0:02:14]}  Rb8 {[%clk 0:01:10]} 28. Ra1 {[%clk 0:02:12]}  g6 {[%clk 0:01:05]} 29. Rf2 {[%clk 0:02:08]}  Rd7 {[%clk 0:01:05]} 30. g4 {[%clk 0:02:06]}  b4 {[%clk 0:00:59]} 31. axb4 {[%clk 0:02:06]}  axb4 {[%clk 0:01:00]} 32. Ra4 {[%clk 0:02:04]}  bxc3 {[%clk 0:00:55]} 33. bxc3 {[%clk 0:02:04]}  Rc7 {[%clk 0:00:54]} 34. Ra1 {[%clk 0:01:50]}  Rb3 {[%clk 0:00:53]} 35. Rc2 {[%clk 0:01:50]}  Rcb7 {[%clk 0:00:52]} 36. Kd2 {[%clk 0:01:49]}  Rb1 {[%clk 0:00:49]} 37. Rxb1 {[%clk 0:01:37]}  Rxb1 {[%clk 0:00:48]} 38. Rc1 {[%clk 0:01:37]}  Rb2+ {[%clk 0:00:43]} 39. Rc2 {[%clk 0:01:38]}  Rb1 {[%clk 0:00:33]} 40. Rc1 {[%clk 0:01:21]}  Rb2+ {[%clk 0:00:32]} 41. Rc2 {[%clk 0:01:20]}  Rb1 {[%clk 0:00:26]} 1/2-1/2


[Site "https://www.chess.com"]